Cogmind - Beta 11 X8 @@@ ROGUE MODE // 2021.11.08 @ 21:06:12 Player: Sylvia Result: Escaped! Performance ------------- Evolutions (9) 4500 Regions Visited (25) 5000 Robots Destroyed (230) 1150 Value Destroyed (10710) 10710 Prototype IDs (53) 1060 Alien Tech Used (2) 400 Bonus (8894) 8894 TOTAL SCORE: 31714 Bonus ------- High Alert Combat Kills 912 Follower Combat Kills 1182 Entered Garrisons 600 Used RIF Installer 1500 Entered DSFs 500 Aligned with FarCom 300 Met Zhirov 300 A7 Reached Mainframe 300 Met R17 at Cetus 500 Read Decrypted Archives 300 Win 3000 Friendly Fire -500 Cogmind --------- Core Integrity 1495/1600 Matter 290/300 Energy 569/590 System Corruption 8% Temperature Cool (-181) Movement Treading (155) Location To Epsilon Eridani Parts ------- > --- POWER (2) -------- Heavy Antimatter Reactor Quantum Reactor > --- PROPULSION (6) --- Biometal Heavy Treads Advanced Heavy Siege Treads Advanced Heavy Siege Treads > --- UTILITY (13) ----- Advanced Cryofiber Web Advanced Heat Sink Advanced Heat Sink Advanced Coolant Injector High-capacity Storage Unit Advanced Target Analyzer Kinecellerator Advanced Weapon Cycler Advanced Weapon Cycler Heavy Reflective Plating Advanced Thermal Shield Relay Coupler [NC] (16) > --- WEAPON (4) ------- Enhanced Nova Cannon Enhanced Nova Cannon Multirail Multirail > --- INVENTORY (20) --- Light Quantum Reactor Armored Medium Treads Heavy Treads Advanced Medium Treads Improved Heavy Treads Armored Heavy Treads Advanced Heat Sink Matter Compressor (250) Improved Focal Shield Advanced Thermal Shield Authchip [Weapon] Gamma Rifle Gamma Rifle Gamma Rifle Compact HERF Cannon KE Penetrator Advanced Remote Datajack Peak State ------------ > --- POWER ------------ Heavy Antimatter Reactor Quantum Reactor > --- PROPULSION ------- Biometal Heavy Treads Advanced Heavy Siege Treads Advanced Heavy Siege Treads > --- UTILITY ---------- Advanced Cryofiber Web Advanced Heat Sink Advanced Heat Sink Advanced Coolant Injector High-capacity Storage Unit Advanced Target Analyzer Kinecellerator Advanced Weapon Cycler Advanced Weapon Cycler Heavy Reflective Plating Advanced Thermal Shield Relay Coupler [NC] > --- WEAPON ----------- Enhanced Nova Cannon Enhanced Nova Cannon Multirail Multirail > --- INVENTORY -------- Light Quantum Reactor Armored Medium Treads Heavy Treads Advanced Medium Treads Improved Heavy Treads Armored Heavy Treads Advanced Heat Sink Matter Compressor Improved Focal Shield Advanced Thermal Shield Authchip [Weapon] Gamma Rifle Gamma Rifle Gamma Rifle Compact HERF Cannon KE Penetrator Advanced Remote Datajack [Rating: 199] Favorites ----------- Power Quantum Reactor Engine Improved Deuterium Engine Power Core Light Nuclear Core Reactor Quantum Reactor Propulsion Light Treads Treads Light Treads Leg Aluminum Leg Utility High-capacity Storage Unit Device Advanced Heat Sink Storage High-capacity Storage Unit Processor Improved Armor Integrity Analyzer Hackware Relay Coupler [NC] Protection Centrium Medium Armor Plating Weapon Enhanced Autogun Energy Gun Wave Gun Energy Cannon Enhanced Nova Cannon Ballistic Gun Enhanced Autogun Ballistic Cannon AWS/Autocannon Launcher Precision Grenade Launcher Special Weapon Improved Remote Datajack Slashing Weapon Power Sword Build | -11 -10 -10 -10 -9 -8 -8 -8 -7 -6 -6 -6 -6 -6 -6 -5 -4 -4 -4 -4 -3 -3 -3 -3 -2 -1 ------- Run | Scr Mat Min Exi Min Mat Gar Sto Fac Fac Ext Cet Arc Hub Gar Fac Fac Upp Upp Zhi Pro Res DSF Gar Res Acc Slots Evolved 18 | . . . . . 4 . . 2 2 . . . . . 2 2 . . . . 2 . . 2 2 Power 1 | . . . . . . . . . . . . . . . 1 . . . . . . . . . . Propulsion 4 | . . . . . 1 . . 1 . . . . . . . . . . . . 2 . . . . Utility 11 | . . . . . 3 . . . 2 . . . . . 1 1 . . . . . . . 2 2 Weapon 2 | . . . . . . . . 1 . . . . . . . 1 . . . . . . . . . Parts Attached 283 | 4 3 2 . 3 10 16 24 22 31 18 22 . 4 2 22 40 8 2 9 . 2 3 8 5 23 Power 28 | 1 . 1 . . . . 1 2 . . 5 . . . 2 7 2 . 3 . 1 . . 1 2 Engine 8 | 1 . 1 . . . . 1 1 . . 1 . . . 1 . 1 . 1 . . . . . . Core 6 | . . . . . . . . 1 . . . . . . 1 3 . . 1 . . . . . . Reactor 14 | . . . . . . . . . . . 4 . . . . 4 1 . 1 . 1 . . 1 2 Propulsion 60 | 2 1 . . 1 1 5 5 8 9 9 3 . . . 1 10 . . . . 1 . 1 1 2 Treads 57 | 2 1 . . 1 1 2 5 8 9 9 3 . . . 1 10 . . . . 1 . 1 1 2 Leg 3 | . . . . . . 3 . . . . . . . . . . . . . . . . . . . Wheel . | . . . . . . . . . . . . . . . . . . . . . . . . . . Hover . | . . . . . . . . . . . . . . . . . . . . . . . . . . Flight . | . . . . . . . . . . . . . . . . . . . . . . . . . . Utility 92 | 1 . 1 . . 6 4 4 5 10 4 5 . 3 . 13 13 3 1 3 . . . 3 3 10 Device 52 | . . . . . 3 1 2 2 6 . 2 . 3 . 7 8 3 1 3 . . . 2 2 7 Storage 2 | 1 . 1 . . . . . . . . . . . . . . . . . . . . . . . Processor 8 | . . . . . 1 . . 1 1 1 . . . . 2 1 . . . . . . . . 1 Hackware 2 | . . . . . . . . . . . . . . . . 2 . . . . . . . . . Protection 28 | . . . . . 2 3 2 2 3 3 3 . . . 4 2 . . . . . . 1 1 2 Artifact . | . . . . . . . . . . . . . . . . . . . . . . . . . . Weapon 103 | . 2 . . 2 3 7 14 7 12 5 9 . 1 2 6 10 3 1 3 . . 3 4 . 9 Energy Gun 27 | . 1 . . . 1 2 5 1 3 1 2 . . . 2 1 . . . . . 1 3 . 4 Energy Cannon 2 | . . . . . . . . . . . . . . . . . . . . . . . . . 2 Ballistic Gun 43 | . 1 . . 1 1 2 5 4 3 3 6 . 1 1 3 5 1 . 1 . . 2 . . 3 Ballistic Cannon 7 | . . . . . 1 1 2 . . 1 1 . . . . 1 . . . . . . . . . Launcher 10 | . . . . 1 . 2 1 . . . . . . 1 1 . 1 1 1 . . . 1 . . Special Weapon 5 | . . . . . . . . . . . . . . . . 3 1 . 1 . . . . . . Impact Weapon . | . . . . . . . . . . . . . . . . . . . . . . . . . . Slashing Weapon 9 | . . . . . . . 1 2 6 . . . . . . . . . . . . . . . . Piercing Weapon . | . . . . . . . . . . . . . . . . . . . . . . . . . . Special Melee Weapon . | . . . . . . . . . . . . . . . . . . . . . . . . . . Unidentified Prototypes 20 | . . . . . . . 6 1 1 . 5 . . . 1 . . . 3 . . . 2 . 1 Corrupted Parts 5 | . . . . . . . . . 1 . 4 . . . . . . . . . . . . . . System Corruption 28 | . . . . . . . . . 5 . 23 . . . . . . . . . . . . . . Parts Lost 47 | . . . . 1 4 6 1 4 2 . . . . . 6 10 . . . 1 . 1 4 2 5 Power 7 | . . . . . . . . 2 . . . . . . 1 2 . . . 1 . . 1 . . Propulsion 7 | . . . . 1 1 2 . . . . . . . . . 2 . . . . . . 1 . . Utility 22 | . . . . . 2 2 1 1 1 . . . . . 4 5 . . . . . . 2 1 3 Weapon 11 | . . . . . 1 2 . 1 1 . . . . . 1 1 . . . . . 1 . 1 2 Highest Loss Streak 6 | . . . . 1 2 2 1 1 2 . . . . . 5 6 . . . 1 . 1 4 2 2 Average Slot Usage (%) 86 | . 85 85 85 85 91 85 98 98 95 92 91 86 87 93 85 79 73 73 72 73 71 75 73 63 85 Engine 4 | . 14 14 14 14 9 9 9 . 6 6 . . . . . . 4 5 4 5 4 4 3 . . Core 1 | . . . . . . . . 5 . . . . . . 1 5 . . . . . . . . . Reactor 2 | . . . . . . . . . . . 5 6 6 6 5 3 5 5 5 5 4 4 4 4 8 Treads 19 | . 28 28 28 28 26 15 22 29 26 26 20 20 20 20 11 14 10 10 10 10 14 14 12 13 12 Device 15 | . . . . . 18 4 13 9 19 13 6 6 12 13 18 22 26 26 26 26 23 23 22 16 33 Storage 6 | . 14 14 14 14 9 9 9 7 6 6 6 6 6 6 5 5 5 5 5 5 4 4 4 4 4 Processor 5 | . . . . . 9 9 6 5 6 12 13 13 13 13 9 1 . . . . . . . . 2 Hackware 1 | . . . . . . . . . . . . . . . . 6 5 5 5 5 4 4 4 4 4 Protection 8 | . . . . . 1 13 13 12 8 12 19 20 13 13 11 3 5 5 5 5 4 4 3 4 5 Energy Gun 4 | . 14 14 14 14 9 5 4 7 2 2 4 . . . 2 2 . . . . . 2 9 11 7 Ballistic Gun 9 | . 14 14 14 10 7 8 11 14 14 6 12 13 15 20 14 6 1 . . . . 3 4 4 4 Ballistic Cannon 1 | . . . . . 1 3 1 . . 3 . . . . . 2 5 5 5 5 4 1 . . . Naked Turns . | . . . . . . . . . . . . . . . . . . . . . . . . . . Heaviest Build 155 | 10 14 53 53 54 62 63 64 64 68 122 142 94 94 94 108 155 150 149 154 149 155 155 106 116 146 Greatest Support 235 | 40 40 40 40 40 60 62 64 84 84 90 130 130 130 130 155 155 150 150 150 150 225 225 225 220 235 Greatest Overweight (x) 5 | . . 1 1 1 1 5 2 . . 1 1 . . . . 1 . . 1 . . . . . . Average Overweight (x) . | . . . 1 1 . . . . . . . . . . . . . . . . . . . . . Largest Inventory Capacity 20 | 8 8 20 20 20 20 20 20 20 20 20 20 20 20 20 20 20 20 20 20 20 20 20 20 20 20 Average Capacity 19 | 7 8 14 20 20 20 20 20 20 20 20 20 20 20 20 20 20 20 20 20 20 20 20 20 20 20 Most Carried 20 | 7 8 14 17 17 20 20 20 20 20 20 20 20 20 19 20 20 20 20 20 20 19 19 17 14 20 Average Carried 18 | 5 6 10 15 16 18 19 19 19 19 19 19 20 19 19 19 18 20 20 19 19 17 17 16 10 17 Final Capacity 20 | 8 8 20 20 20 20 20 20 20 20 20 20 20 20 20 20 20 20 20 20 20 20 20 20 20 20 Final Carried 20 | 6 8 14 17 17 19 20 19 20 20 18 20 20 19 19 19 20 20 20 20 20 17 17 10 11 20 Class Distribution -------------------- 39% | Mutant 19% | Scavenger-Gunner 11% | Scavenger-Mutant 8% | Scavenger-Tank 8% | Scavenger-Skirmisher 3% | Tank 3% | Commander-Gunner Dominant Class ---------------- Mutant | -10/Materials Mutant | -10/Mines Mutant | -10/Exiles Mutant | -9/Mines Mutant | -8/Materials Mutant | -8/Garrison Mutant | -8/Storage Scavenger-Tank | -7/Factory Scavenger-Skirmisher | -6/Factory Scavenger-Gunner | -6/Extension Scavenger-Tank | -6/Cetus Scavenger-Mutant | -6/Archives Scavenger-Mutant | -6/Hub_04(d) Scavenger-Gunner | -6/Garrison Scavenger-Gunner | -5/Factory Mutant | -4/Factory Mutant | -4/Upper Caves Mutant | -4/Upper Caves Mutant | -4/Zhirov Mutant | -3/Proximity Caves Skirmisher | -3/Research Skirmisher | -3/DSF Tank | -3/Garrison Tank | -2/Research Scavenger-Gunner | -1/Access Resources | -11 -10 -10 -10 -9 -8 -8 -8 -7 -6 -6 -6 -6 -6 -6 -5 -4 -4 -4 -4 -3 -3 -3 -3 -2 -1 ----------- Run | Scr Mat Min Exi Min Mat Gar Sto Fac Fac Ext Cet Arc Hub Gar Fac Fac Upp Upp Zhi Pro Res DSF Gar Res Acc Matter Collected 6706 | 240 129 53 . 66 182 290 426 467 414 782 364 . 143 361 836 535 85 144 . 403 . 62 . 90 634 Remotely 209 | . . . . . 68 . . 90 . . . . . . . 51 . . . . . . . . . Salvage Created 10637 | . 481 171 . 166 188 437 659 722 731 766 405 . 310 484 1823 1262 34 39 . 78 . 53 154 183 1491 Parts 542 | . 26 6 . 8 3 22 39 33 35 41 13 . 21 23 101 63 4 3 . . . 3 16 7 75 Haulers Intercepted 10 | . 1 . . . . . 3 2 1 . . . . . 2 1 . . . . . . . . . Recyclers Shooed 8 | . . 1 . . . . . 1 . . . . . . 1 1 . . . . . . . . 4 Parts Field Recycled . | . . . . . . . . . . . . . . . . . . . . . . . . . . Retrieved Matter . | . . . . . . . . . . . . . . . . . . . . . . . . . . Parts Self-Destructed 3 | . . . . . . . . . . . . . . . . . 3 . . . . . . . . Prevented . | . . . . . . . . . . . . . . . . . . . . . . . . . . Kills | -11 -10 -10 -10 -9 -8 -8 -8 -7 -6 -6 -6 -6 -6 -6 -5 -4 -4 -4 -4 -3 -3 -3 -3 -2 -1 ------- Run | Scr Mat Min Exi Min Mat Gar Sto Fac Fac Ext Cet Arc Hub Gar Fac Fac Upp Upp Zhi Pro Res DSF Gar Res Acc Combat Hostiles Destroyed 178 | . 10 2 . 5 4 17 11 9 9 11 8 . 3 14 21 23 4 4 . 1 . 3 3 2 14 Melee 1 | . . . . . . . . . . . . . . . 1 . . . . . . . . . . Guns 104 | . 10 2 . 2 2 6 10 9 8 4 5 . 3 11 15 7 . . . . . 1 3 2 4 Cannons 42 | . . . . . 2 3 1 . . 7 3 . . . . 16 . . . 1 . 1 . . 8 AOE 28 | . . . . 3 . 8 . . 1 . . . . 3 5 . 4 4 . . . . . . . Classes Destroyed 19 | . 2 1 . 1 1 . 2 1 2 4 . . 2 . 1 1 . . . . . 1 . . . Worker 6 | . . . . . . . . . . . . . 1 . 4 . . . . . . . . . 1 Builder 6 | . . . . . . . . . 1 . . . . . 3 2 . . . . . . . . . Tunneler 3 | . . . . . . . . . . 1 . . 1 . 1 . . . . . . . . . . Hauler 10 | . 1 . . . . . 3 2 1 . . . . . 2 1 . . . . . . . . . Recycler 6 | . . 1 . 1 . . . 1 . . . . . . 3 . . . . . . . . . . Operator 2 | . . . . . . . . . . 1 . . . . 1 . . . . . . . . . . Watcher 19 | . . . . . . . 2 1 1 2 1 . 1 . 4 3 . . . . . . . . 4 Swarmer 37 | . . . . 3 . 6 2 . . . . . . 8 5 4 4 4 . . . . 1 . . Cutter 3 | . . . . . . . . . . . . . . . . . . . . . . 3 . . . Saboteur 1 | . . . . . . . . . . . . . . . 1 . . . . . . . . . . Grunt 62 | . 10 2 . 2 2 10 5 3 5 3 4 . 1 5 3 7 . . . . . . . . . Brawler 3 | . . . . . . . . . 1 . 1 . . 1 . . . . . . . . . . . Duelist 4 | . . . . . . . . . . 3 . . . . . 1 . . . . . . . . . Protector 1 | . . . . . . . . . . . . . . . . 1 . . . . . . . . . Sentry 20 | . . . . . 2 1 3 3 2 4 . . . . 2 1 . . . 1 . . . . 1 Specialist 4 | . . . . . . . . . . . . . 2 . . . . . . . . . . 2 . Hunter 8 | . . . . . . . 1 . . . . . . . 3 2 . . . . . . . . 2 Programmer 29 | . . . . . . . . 3 1 . . . . . 7 7 . . . . . . 2 . 9 Behemoth 3 | . . . . . . . . . . 1 . . . . . . . . . . . . . . 2 Cetus Guard 3 | . . . . . . . . . . . 3 . . . . . . . . . . . . . . Best Kill Streak 8 | . 4 3 . 3 1 6 3 3 4 4 5 . 5 4 8 7 4 4 . 1 . 3 2 2 2 Combat Bots Only 6 | . 3 2 . 3 1 6 2 2 3 3 5 . 2 4 5 5 4 4 . 1 . 3 2 2 2 Max Kills in Single Turn 5 | . 1 1 . 2 1 2 1 1 2 1 2 . 2 2 5 2 3 2 . 1 . 1 1 1 2 Gunslinging 1 | . . . . . . . . . . . . . . 1 1 1 . . . . . . . . . Exploded 4 | . . . . 2 . 2 . . 1 . . . . 2 4 . 3 2 . . . . . . . Melee 1 | . . . . . . . . . . . . . . . 1 . . . . . . . . . . Uniques/NPCs Destroyed . | . . . . . . . . . . . . . . . . . . . . . . . . . . Combat | -11 -10 -10 -10 -9 -8 -8 -8 -7 -6 -6 -6 -6 -6 -6 -5 -4 -4 -4 -4 -3 -3 -3 -3 -2 -1 -------- Run | Scr Mat Min Exi Min Mat Gar Sto Fac Fac Ext Cet Arc Hub Gar Fac Fac Upp Upp Zhi Pro Res DSF Gar Res Acc Damage Taken 14168 | . 349 128 . 73 548 968 515 485 700 581 434 15 101 348 1966 2372 179 91 . 378 . 378 680 636 2243 Core 1229 | . 55 26 . . 35 167 103 33 16 42 29 . . 12 165 213 13 . . 73 . . 111 31 105 Absorbed by Shields 530 | . . . . . . . . . . 170 72 . . . . . . . . . . . . . 288 Reduced by Siege Mode 204 | . . . . . . . . . . . . . . . . . . . . . . . . . 204 Core Remaining (%) 82 | 100 . . . 67 . . 44 95 . . . . . 88 83 . . . . 74 . . 83 97 93 Volleys Fired 512 | . 33 11 . 9 22 44 47 33 30 27 16 . 19 19 59 33 6 5 1 . . 2 9 16 71 Largest 4 | . 2 2 . 2 2 2 2 3 3 3 3 . 3 3 3 4 1 1 1 . . 3 4 4 4 Hottest 356 | . 70 70 . 70 111 111 111 111 111 100 240 . 105 105 151 189 40 36 40 . . 145 266 266 356 Shots Fired 1360 | . 66 22 . 16 44 77 92 99 89 91 54 . 31 52 152 141 7 5 1 10 . 10 29 39 233 Gun 1110 | . 66 22 . 14 32 61 86 99 89 69 37 . 31 49 149 88 . . . . . 6 29 39 144 Cannon 216 | . . . . . 12 7 6 . . 22 17 . . . . 49 1 . . 9 . 4 . . 89 Launcher 25 | . . . . 2 . 9 . . . . . . . 3 3 . 2 5 . 1 . . . . . Special 9 | . . . . . . . . . . . . . . . . 4 4 . 1 . . . . . . Kinetic 828 | . 33 11 . 7 22 36 55 66 70 74 41 . 31 49 130 109 1 . . 9 . 8 9 9 58 Thermal 420 | . 33 11 . 7 22 32 37 33 4 . 13 . . . 19 28 . . . . . 2 18 25 136 Explosive 25 | . . . . 2 . 9 . . . . . . . 3 3 . 2 5 . 1 . . . . . Electromagnetic 78 | . . . . . . . . . 15 17 . . . . . . . . . . . . 2 5 39 Robot Hit Streak 45 | . 9 9 . 9 13 15 14 20 44 13 45 . 17 12 38 13 5 6 7 10 . 8 10 6 17 Robot Miss Streak 4 | . 2 2 . 3 3 3 4 2 1 4 2 . 1 2 2 4 2 . . 2 . 2 3 3 4 Penetration Max 1 | . . . . . . . . . . . 1 . 1 1 1 . . . . . . . . . 1 Secondary Targets 20 | . 1 1 . . . 1 . . 3 . 2 . . 2 5 3 . . . . . . 1 1 . Max Gunslinging Chain 2 | . 1 1 . . . 1 . . 1 . 1 . . 2 1 1 . . . . . . 1 1 . Autonomous 103 | . . . . . . . . . . 22 17 . . . . 49 1 . . 9 . 5 . . . Shots Hit Robots 956 | . 48 16 . 13 34 52 62 69 79 67 44 . 14 33 116 100 5 1 1 7 . 7 20 18 150 Core Hits 431 | . 24 8 . 9 11 37 28 26 37 31 14 . 9 21 67 40 5 7 . 1 . 3 7 6 40 Critical Kills 21 | . . . . . . . . . . . 1 . 3 6 8 1 . . . . . . . . 2 Critical Parts Destroyed 33 | . . 1 . . . 2 . . . . 1 . 3 2 15 1 . . . . . . 1 . 7 Critical Strikes 87 | . 2 1 . . 1 5 4 3 . 4 2 . 6 8 24 10 . . . 1 . 1 2 . 13 Burn 14 | . 2 . . . . 2 3 3 . . . . . . 1 1 . . . . . . 1 . 1 Meltdown 2 | . . . . . . . . . . . . . . . . . . . . . . . . . 2 Destroy 53 | . . 1 . . . 2 . . . . 2 . 6 8 23 2 . . . . . . 1 . 8 Blast 16 | . . . . . 1 1 1 . . 4 . . . . . 7 . . . 1 . 1 . . . Corrupt 2 | . . . . . . . . . . . . . . . . . . . . . . . . . 2 Melee Attacks 19 | . . . . . . . 3 3 13 . . . . . . . . . . . . . . . . Impact . | . . . . . . . . . . . . . . . . . . . . . . . . . . Slashing 19 | . . . . . . . 3 3 13 . . . . . . . . . . . . . . . . Piercing . | . . . . . . . . . . . . . . . . . . . . . . . . . . Sneak Attacks . | . . . . . . . . . . . . . . . . . . . . . . . . . . Combat Hostiles . | . . . . . . . . . . . . . . . . . . . . . . . . . . Follow-up Attacks . | . . . . . . . . . . . . . . . . . . . . . . . . . . Damage Inflicted 31627 | . 608 203 . 299 637 2067 1088 1260 1546 2626 1698 . 501 1255 4742 5291 313 316 . 590 . 423 626 458 5080 Guns 17489 | . 608 203 . 163 387 649 953 1260 1397 934 665 . 501 949 3735 1633 . . . . . 70 626 458 2298 Cannons 10543 | . . . . . 250 101 135 . . 1641 1033 . . . . 3658 . . . 590 . 353 . . 2782 Explosions 3585 | . . . . 136 . 1317 . . 149 51 . . . 306 997 . 313 316 . . . . . . . Melee . | . . . . . . . . . . . . . . . . . . . . . . . . . . Ramming 10 | . . . . . . . . . . . . . . . 10 . . . . . . . . . . Kinetic 18838 | . 266 102 . 89 363 332 597 710 984 2275 1471 . 501 949 3349 4640 . . . 590 . 402 193 97 928 Thermal 8168 | . 342 101 . 74 274 418 491 550 218 51 227 . . . 386 651 . . . . . 21 388 292 3684 Explosive 3385 | . . . . 136 . 1317 . . . . . . . 306 997 . 313 316 . . . . . . . Electromagnetic 1226 | . . . . . . . . . 344 300 . . . . . . . . . . . . 45 69 468 Impact . | . . . . . . . . . . . . . . . . . . . . . . . . . . Slashing . | . . . . . . . . . . . . . . . . . . . . . . . . . . Piercing . | . . . . . . . . . . . . . . . . . . . . . . . . . . Highest Corruption 28 | . . . . . . . . 3 5 5 28 28 28 28 10 11 11 11 11 14 . . 3 2 8 Average Corruption 10 | . . . . . . . . 2 5 5 22 28 28 28 5 10 11 11 11 11 . . 2 2 6 Corruption Purged . | . . . . . . . . . . . . . . . . . . . . . . . . . . Effects 302 | . . . . . . . . 11 2 46 26 5 15 41 23 32 33 19 8 14 . . 2 2 23 Message Errors 62 | . . . . . . . . 5 . 12 6 2 1 4 5 6 5 5 2 1 . . 1 1 6 Matter Fused 73 | . . . . . . . . 2 . 13 3 1 4 10 6 12 10 4 1 2 . . 1 . 4 Heat Flow Errors 47 | . . . . . . . . 1 . 6 3 1 4 9 6 4 6 2 . 1 . . . . 4 Energy Discharges 35 | . . . . . . . . 2 . 4 4 . . 2 2 5 4 4 1 4 . . . . 3 Data Loss (minor) 42 | . . . . . . . . 1 2 5 4 . 2 8 2 2 6 2 1 3 . . . 1 3 Data Loss (major) 16 | . . . . . . . . . . 4 2 . 1 3 1 . 1 1 2 1 . . . . . Misfires 7 | . . . . . . . . . . 1 . . . 3 . 1 . . . 1 . . . . 1 Alerts 9 | . . . . . . . . . . . 2 1 1 . . 1 1 1 1 1 . . . . . Misdirections 1 | . . . . . . . . . . . . . 1 . . . . . . . . . . . . Weapon Failures 10 | . . . . . . . . . . 1 2 . 1 2 1 1 . . . . . . . . 2 Overload Shots 6 | . . . . . . . . . . . 4 . . . . . . . . . . . . 2 . Overflow Damage 1267 | . . . . . . 63 . . . 128 75 . . 15 114 355 . 62 . 165 . 169 . . 121 Projectiles 1013 | . . . . . . . . . . 128 75 . . . . 355 . . . 165 . 169 . . 121 Explosions 254 | . . . . . . 63 . . . . . . . 15 114 . . 62 . . . . . . . Melee . | . . . . . . . . . . . . . . . . . . . . . . . . . . Knockbacks 39 | . . . . . 2 . 2 . . 4 1 . . . . 21 . . . 4 . 5 . . . Impact . | . . . . . . . . . . . . . . . . . . . . . . . . . . Kinetic 32 | . . . . . 2 . 2 . . 4 1 . . . . 16 . . . 4 . 3 . . . Secondary 7 | . . . . . . . . . . . . . . . . 5 . . . . . 2 . . . Self-Inflicted Damage 189 | . . . . . . 70 . . 21 52 . . . 29 17 . . . . . . . . . . Shots 6 | . . . . . . 2 . . 1 1 . . . 1 1 . . . . . . . . . . Rammed 1 | . . . . . . . . . . . . . . . 1 . . . . . . . . . . Targets Rammed 1 | . . . . . . . . . . . . . . . 1 . . . . . . . . . . Kicked . | . . . . . . . . . . . . . . . . . . . . . . . . . . Crushed . | . . . . . . . . . . . . . . . . . . . . . . . . . . Highest Temperature 348 | . 126 129 . 108 40 274 252 123 119 236 324 108 190 236 330 197 56 . . 80 . . 195 186 348 Average Temperature 76 | . 42 47 . 60 16 64 48 48 45 48 102 54 82 89 92 84 25 . . 47 . . 103 118 116 Received Heat Transfer 2459 | . 219 93 . 24 288 423 207 81 228 159 91 9 18 81 387 127 . . . . . . . . 24 Effects 2 | . . . . . . 1 . . . . . . . . . . . . . . . . . . 1 Energy Bleed 2 | . . . . . . 1 . . . . . . . . . . . . . . . . . . 1 Siege Activations 9 | . . . . . . . . . . . . . . . . . . . . . . . . . 9 Total Turns 81 | . . . . . . . . . . . . . . . . . . . . . . . . . 81 Longest Duration 21 | . . . . . . . . . . . . . . . . . . . . . . . . . 21 Robots Corrupted 1 | . . . . . . . . . 1 . . . . . . . . . . . . . . . . Combat Hostiles . | . . . . . . . . . . . . . . . . . . . . . . . . . . Parts Fried 2 | . . . . . . . . . 1 . . . . . . . . . . . . . . . 1 Impact Corruptions 3 | . . . . . . . . . . . . . . . . . . . . . . 3 . . . Robots Melted 2 | . . . . . . . . . . . . . . . . . . . . . . . . . 2 Combat Hostiles 2 | . . . . . . . . . . . . . . . . . . . . . . . . . 2 Parts Melted 31 | . 3 . . 2 1 4 3 6 1 . . . . . . 2 . . . . . . 1 1 7 Heat Transferred 12146 | . 1147 296 . 222 592 1073 1295 1369 248 50 296 . . . 666 851 . . . . . 37 555 407 3042 Parts Sabotaged 2 | . . . . . . . . . . . . . . . 2 . . . . . . . . . . Parts Stolen . | . . . . . . . . . . . . . . . . . . . . . . . . . . Parts Stripped . | . . . . . . . . . . . . . . . . . . . . . . . . . . Power Chain Reactions 2 | . . . . . . . . . 1 1 . . . . . . . . . . . . . . . Missiles Intercepted . | . . . . . . . . . . . . . . . . . . . . . . . . . . Alert | -11 -10 -10 -10 -9 -8 -8 -8 -7 -6 -6 -6 -6 -6 -6 -5 -4 -4 -4 -4 -3 -3 -3 -3 -2 -1 ------- Run | Scr Mat Min Exi Min Mat Gar Sto Fac Fac Ext Cet Arc Hub Gar Fac Fac Upp Upp Zhi Pro Res DSF Gar Res Acc Peak Influence 895 | . 220 82 . 125 134 895 603 362 196 485 616 276 250 524 813 631 . . . . 11 83 117 153 286 Initial 436 | . . 27 . . 48 89 436 247 138 94 216 213 96 175 275 373 . . . . 6 8 62 60 . Average 286 | . 67 75 . 43 58 467 464 234 79 326 451 237 120 361 505 428 . . . . 6 50 69 96 119 Maximum Alert Level 3 | . 1 . . . . 3 2 1 . 2 2 1 1 2 3 2 . . . . . . . . 1 Low Security (%) 38 | 100 92 100 . 100 100 20 . 23 100 8 1 . 87 2 . 1 . . . . 100 100 100 100 69 Level 1 33 | . 7 . . . . 8 15 76 . 80 44 100 12 67 31 54 . . . . . . . . 30 Level 2 23 | . . . . . . 47 84 . . 11 54 . . 29 47 43 . . . . . . . . . Level 3 4 | . . . . . . 23 . . . . . . . . 20 . . . . . . . . . . Level 4 . | . . . . . . . . . . . . . . . . . . . . . . . . . . Level 5 . | . . . . . . . . . . . . . . . . . . . . . . . . . . High Security . | . . . . . . . . . . . . . . . . . . . . . . . . . . Max Security . | . . . . . . . . . . . . . . . . . . . . . . . . . . Squads Dispatched 35 | . 1 1 . 1 2 . 3 3 3 . . . 2 . 9 5 . . . . . 1 . 1 3 Investigation 3 | . 1 1 . . . . 1 . . . . . . . . . . . . . . . . . . Extermination 12 | . . . . . . . . 2 1 . . . . . 4 2 . . . . . . . . 3 Reinforcement 15 | . . . . 1 . . 2 1 2 . . . 2 . 3 2 . . . . . 1 . 1 . Assault 3 | . . . . . . . . . . . . . . . 2 1 . . . . . . . . . Garrison 2 | . . . . . 2 . . . . . . . . . . . . . . . . . . . . Intercept . | . . . . . . . . . . . . . . . . . . . . . . . . . . Construction Impeded 2 | . . . . 1 . . . . . . . . . . 1 . . . . . . . . . . Haulers Reinforced 2 | . . . . . . . . 1 . . . . . . . 1 . . . . . . . . . Active Scanning Responses . | . . . . . . . . . . . . . . . . . . . . . . . . . . Cargo Convoy Interrupts 1 | . . . . . . . . . 1 . . . . . . . . . . . . . . . . Stealth | -11 -10 -10 -10 -9 -8 -8 -8 -7 -6 -6 -6 -6 -6 -6 -5 -4 -4 -4 -4 -3 -3 -3 -3 -2 -1 --------- Run | Scr Mat Min Exi Min Mat Gar Sto Fac Fac Ext Cet Arc Hub Gar Fac Fac Upp Upp Zhi Pro Res DSF Gar Res Acc Distress Signals 8 | . . . . . . . . . 1 1 2 . 1 . 1 1 . . . . . . . . 1 Communications Jammed 94 | . . . . . 2 . . . 2 21 25 . 22 . 7 15 . . . . . . . . . Distress Signals 90 | . . . . . . . . . 2 21 25 . 22 . 7 13 . . . . . . . . . Times Spotted 281 | . 13 3 . 5 7 21 14 9 14 23 18 8 9 12 41 33 4 5 . 6 . 4 11 3 18 Peak Tracking Total 10 | . 4 2 . 3 3 6 2 2 5 4 5 6 5 4 10 6 4 4 . 7 . 3 10 2 3 Tactical Retreats 20 | . 1 . . . 1 4 1 . 1 . . . 2 1 2 3 . . . . . 1 1 2 . Traps | -11 -10 -10 -10 -9 -8 -8 -8 -7 -6 -6 -6 -6 -6 -6 -5 -4 -4 -4 -4 -3 -3 -3 -3 -2 -1 ------- Run | Scr Mat Min Exi Min Mat Gar Sto Fac Fac Ext Cet Arc Hub Gar Fac Fac Upp Upp Zhi Pro Res DSF Gar Res Acc Traps Triggered 22 | . 1 . . . . 10 1 4 1 1 . . . . 2 . . . . . . 1 . 1 . Indirectly . | . . . . . . . . . . . . . . . . . . . . . . . . . . Trap Hack Attempts . | . . . . . . . . . . . . . . . . . . . . . . . . . . Triggered . | . . . . . . . . . . . . . . . . . . . . . . . . . . Disarmed . | . . . . . . . . . . . . . . . . . . . . . . . . . . Reprogrammed . | . . . . . . . . . . . . . . . . . . . . . . . . . . Reused . | . . . . . . . . . . . . . . . . . . . . . . . . . . Traps Extracted . | . . . . . . . . . . . . . . . . . . . . . . . . . . Installed . | . . . . . . . . . . . . . . . . . . . . . . . . . . Triggered 2 | . . . . . . . . . 2 . . . . . . . . . . . . . . . . Machines | -11 -10 -10 -10 -9 -8 -8 -8 -7 -6 -6 -6 -6 -6 -6 -5 -4 -4 -4 -4 -3 -3 -3 -3 -2 -1 ---------- Run | Scr Mat Min Exi Min Mat Gar Sto Fac Fac Ext Cet Arc Hub Gar Fac Fac Upp Upp Zhi Pro Res DSF Gar Res Acc Machines Disabled 35 | . . . . . . 2 . 11 1 1 1 1 1 . 10 1 1 . . . . . . . 5 Max in Single Turn 11 | . . . . . . 1 . 11 1 1 . . 1 . 5 1 1 . . . . . . . 1 Garrison Access 7 | . . . . . . . . 1 2 . . . . . . 3 . . . . . . . . 1 Garrison Relay 2 | . . . . . . 2 . . . . . . . . . . . . . . . . . . . Machines Sabotaged . | . . . . . . . . . . . . . . . . . . . . . . . . . . Garrisons Compromised 1 | . . . . . . . . . 1 . . . . . . . . . . . . . . . . Overloaded Fab Kills . | . . . . . . . . . . . . . . . . . . . . . . . . . . Hacking | -11 -10 -10 -10 -9 -8 -8 -8 -7 -6 -6 -6 -6 -6 -6 -5 -4 -4 -4 -4 -3 -3 -3 -3 -2 -1 --------- Run | Scr Mat Min Exi Min Mat Gar Sto Fac Fac Ext Cet Arc Hub Gar Fac Fac Upp Upp Zhi Pro Res DSF Gar Res Acc Machines Accessed 64 | . 3 1 2 . 1 . 8 6 8 7 3 1 1 . 5 5 1 . 6 . 2 . . 1 3 Terminals 40 | . 3 . . . . . 8 2 5 7 3 . . . 4 2 1 . . . 2 . . 1 2 Fabricators 3 | . . . . . . . . 1 1 . . . . . 1 . . . . . . . . . . Repair Stations 1 | . . . . . . . . 1 . . . . . . . . . . . . . . . . . Recycling Units 1 | . . . . . . . . 1 . . . . . . . . . . . . . . . . . Scanalyzers . | . . . . . . . . . . . . . . . . . . . . . . . . . . Garrison Access 9 | . . . . . 1 . . 1 2 . . . 1 . . 3 . . . . . . . . 1 Total Hacks 141 | . 5 1 5 . 1 . 15 9 18 15 6 25 1 . 7 6 1 . 19 . 2 . . 1 4 Successful 103 | . 2 1 5 . 1 . 10 7 11 8 . 25 1 . 4 5 1 . 19 . 1 . . 1 1 Failed 38 | . 3 . . . . . 5 2 7 7 6 . . . 3 1 . . . . 1 . . . 3 Catastrophic 9 | . 1 . . . . . 1 1 . 2 2 . . . . 1 . . . . . . . . 1 Database Lockouts . | . . . . . . . . . . . . . . . . . . . . . . . . . . Manual 23 | . 5 . 1 . . . 4 2 3 6 1 . . . . 1 . . . . . . . . . Terminals 71 | . 5 . . . . . 15 2 14 15 6 . . . 5 2 1 . . . 2 . . 1 3 Fabricators 4 | . . . . . . . . 1 1 . . . . . 2 . . . . . . . . . . Repair Stations 2 | . . . . . . . . 2 . . . . . . . . . . . . . . . . . Recycling Units 2 | . . . . . . . . 2 . . . . . . . . . . . . . . . . . Scanalyzers . | . . . . . . . . . . . . . . . . . . . . . . . . . . Garrison Access 12 | . . . . . 1 . . 2 3 . . . 1 . . 4 . . . . . . . . 1 Terminal Hacks 80 | . 2 1 5 . . . 9 1 6 6 . 25 . . 2 1 1 . 19 . 1 . . 1 . Record 37 | . . . 4 . . . . . . . . 25 . . . . 1 . 7 . . . . . . Part Schematic 5 | . . . . . . . . . . . . . . . 1 . . . 4 . . . . . . Robot Analysis 5 | . . . . . . . . . . 1 . . . . . . . . 4 . . . . . . Prototype ID Bank 5 | . . . . . . . . . 1 . . . . . . . . . 4 . . . . . . Open Door 8 | . . 1 . . . . 3 . . 4 . . . . . . . . . . . . . . . Open DSF 4 | . . . . . . . . 1 1 . . . . . 1 . . . . . 1 . . . . Level Access Points 1 | . . . . . . . . . . . . . . . . . . . . . . . . 1 . Branch Access Points 5 | . 1 . . . . . 1 . 1 1 . . . . . 1 . . . . . . . . . Locate Traps 1 | . 1 . . . . . . . . . . . . . . . . . . . . . . . . Recall Reinforcements 1 | . . . . . . . 1 . . . . . . . . . . . . . . . . . . Hauler Manifests 2 | . . . . . . . 2 . . . . . . . . . . . . . . . . . . Registered Components 1 | . . . . . . . 1 . . . . . . . . . . . . . . . . . . Registered Prototypes 1 | . . . . . . . 1 . . . . . . . . . . . . . . . . . . Zone Layout 3 | . . . . . . . . . 3 . . . . . . . . . . . . . . . . EX-Prototype ID Bank 1 | . . . 1 . . . . . . . . . . . . . . . . . . . . . . Fabricator Hacks 4 | . . . . . . . . 1 1 . . . . . 2 . . . . . . . . . . Network Status 2 | . . . . . . . . 1 1 . . . . . . . . . . . . . . . . Load Schematic 1 | . . . . . . . . . . . . . . . 1 . . . . . . . . . . Build 1 | . . . . . . . . . . . . . . . 1 . . . . . . . . . . Repair Station Hacks 2 | . . . . . . . . 2 . . . . . . . . . . . . . . . . . Scan Component 1 | . . . . . . . . 1 . . . . . . . . . . . . . . . . . Repair 1 | . . . . . . . . 1 . . . . . . . . . . . . . . . . . Recycling Unit Hacks . | . . . . . . . . . . . . . . . . . . . . . . . . . . Scanalyzer . | . . . . . . . . . . . . . . . . . . . . . . . . . . Garrison Access Hacks 12 | . . . . . 1 . . 2 3 . . . 1 . . 4 . . . . . . . . 1 Unlock Access 2 | . . . . . 1 . . . . . . . 1 . . . . . . . . . . . . Seal Access 7 | . . . . . . . . 1 2 . . . . . . 3 . . . . . . . . 1 Coupler Status 3 | . . . . . . . . 1 1 . . . . . . 1 . . . . . . . . . Unauthorized Hacks 5 | . . . . . . . 1 1 1 2 . . . . . . . . . . . . . . . Terminals 4 | . . . . . . . 1 . 1 2 . . . . . . . . . . . . . . . Botnet 3 | . . . . . . . 1 . 1 1 . . . . . . . . . . . . . . . Operators 1 | . . . . . . . . . . 1 . . . . . . . . . . . . . . . Fabricators . | . . . . . . . . . . . . . . . . . . . . . . . . . . Repair Stations . | . . . . . . . . . . . . . . . . . . . . . . . . . . Recycling Units 1 | . . . . . . . . 1 . . . . . . . . . . . . . . . . . Monitor 1 | . . . . . . . . 1 . . . . . . . . . . . . . . . . . Scanalyzers . | . . . . . . . . . . . . . . . . . . . . . . . . . . Garrison Access . | . . . . . . . . . . . . . . . . . . . . . . . . . . Data Cores Recovered 1 | . . . . . . . . . . . . . . . 1 . . . . . . . . . . Used 1 | . . . . . . . . . . . . . . . 1 . . . . . . . . . . Hacking Detections 32 | . 3 . . . . . 5 3 5 3 3 . 1 . 4 2 . . . . 1 . . . 2 Full Trace Events 1 | . . . . . . . 1 . . . . . . . . . . . . . . . . . . Feedback Events . | . . . . . . . . . . . . . . . . . . . . . . . . . . Feedback Blocked . | . . . . . . . . . . . . . . . . . . . . . . . . . . Robot Schematics Acquired . | . . . . . . . . . . . . . . . . . . . . . . . . . . Robots Built . | . . . . . . . . . . . . . . . . . . . . . . . . . . Authchips . | . . . . . . . . . . . . . . . . . . . . . . . . . . Time . | . . . . . . . . . . . . . . . . . . . . . . . . . . Total Robot Build Rating . | . . . . . . . . . . . . . . . . . . . . . . . . . . Part Schematics Acquired 5 | . . . . . . . . . . . . . . . 1 . . . 4 . . . . . . Parts Built 2 | . . . . . . . . . . . . . . . 2 . . . . . . . . . . Authchips . | . . . . . . . . . . . . . . . . . . . . . . . . . . Time 58 | . . . . . . . . . . . . . . . 58 . . . . . . . . . . Total Part Build Rating 14 | . . . . . . . . . . . . . . . 14 . . . . . . . . . . Parts Repaired 1 | . . . . . . . . 1 . . . . . . . . . . . . . . . . . Time 38 | . . . . . . . . 38 . . . . . . . . . . . . . . . . . Parts Recycled . | . . . . . . . . . . . . . . . . . . . . . . . . . . Recycled Matter . | . . . . . . . . . . . . . . . . . . . . . . . . . . Retrieved Matter . | . . . . . . . . . . . . . . . . . . . . . . . . . . Retrieved Components . | . . . . . . . . . . . . . . . . . . . . . . . . . . Parts Scanalyzed . | . . . . . . . . . . . . . . . . . . . . . . . . . . Part Schematics Acquired . | . . . . . . . . . . . . . . . . . . . . . . . . . . Parts Damaged . | . . . . . . . . . . . . . . . . . . . . . . . . . . Bothacking | -11 -10 -10 -10 -9 -8 -8 -8 -7 -6 -6 -6 -6 -6 -6 -5 -4 -4 -4 -4 -3 -3 -3 -3 -2 -1 ------------ Run | Scr Mat Min Exi Min Mat Gar Sto Fac Fac Ext Cet Arc Hub Gar Fac Fac Upp Upp Zhi Pro Res DSF Gar Res Acc Used RIF Installer 3 | . . . . . . 1 . . . . . . . 1 . . . . . . . . 1 . . Hotswap 1 | . . . . . . . . . . . . . . . . . . . . . . . 1 . . Program Shield 1 | . . . . . . . . . . . . . . 1 . . . . . . . . . . . Robots Hacked 5 | . . . . . . . . . . . . . . . . 2 3 . . . . . . . . Non-combat 5 | . . . . . . . . . . . . . . . . 2 3 . . . . . . . . Combat . | . . . . . . . . . . . . . . . . . . . . . . . . . . Robot Hacks Applied 7 | . . . . . . . . . . . . . . . . 4 3 . . . . . . . . parse_system 4 | . . . . . . . . . . . . . . . . 1 3 . . . . . . . . no_distress 1 | . . . . . . . . . . . . . . . . 1 . . . . . . . . . drop_inventory 1 | . . . . . . . . . . . . . . . . 1 . . . . . . . . . locate_stockpiles 1 | . . . . . . . . . . . . . . . . 1 . . . . . . . . . Relay Couplers Released 14 | . . . . . . 10 . . . . . . . . 4 . . . . . . . . . . Machine Destruction 10 | . . . . . . 10 . . . . . . . . . . . . . . . . . . . Programmers 4 | . . . . . . . . . . . . . . . 4 . . . . . . . . . . Attached 1 | . . . . . . . . . . . . . . . . 1 . . . . . . . . . Robots Rewired 11 | . . . . . . . . . . 11 . . . . . . . . . . . . . . . Allies Hacked . | . . . . . . . . . . . . . . . . . . . . . . . . . . Hacks Repelled . | . . . . . . . . . . . . . . . . . . . . . . . . . . Allies | -11 -10 -10 -10 -9 -8 -8 -8 -7 -6 -6 -6 -6 -6 -6 -5 -4 -4 -4 -4 -3 -3 -3 -3 -2 -1 -------- Run | Scr Mat Min Exi Min Mat Gar Sto Fac Fac Ext Cet Arc Hub Gar Fac Fac Upp Upp Zhi Pro Res DSF Gar Res Acc Total Allies 17 | . . . . . . . . . . 15 2 . . . . . . . . . . . . . . Largest Group 13 | . . . . . . . . . . 13 13 2 . . . . . . . . . . . . . Highest-Rated Group 596 | . . . . . . . . . . 506 596 125 . . . . . . . . . . . . . Highest-Rated Ally 159 | . . . . . . . . . . 159 159 88 . . . . . . . . . . . . . Total Orders 4 | . . . . . . . . . . 4 . . . . . . . . . . . . . . . STAY 2 | . . . . . . . . . . 2 . . . . . . . . . . . . . . . FOLLOW 2 | . . . . . . . . . . 2 . . . . . . . . . . . . . . . Ally Attacks 174 | . . . . . . . . . . 61 102 11 . . . . . . . . . . . . . Total Damage 4382 | . . . . . . . . . . 1960 2108 314 . . . . . . . . . . . . . Kills 28 | . . . . . . . . . . 13 13 2 . . . . . . . . . . . . . Allies Corrupted . | . . . . . . . . . . . . . . . . . . . . . . . . . . Allies Melted . | . . . . . . . . . . . . . . . . . . . . . . . . . . Intel | -11 -10 -10 -10 -9 -8 -8 -8 -7 -6 -6 -6 -6 -6 -6 -5 -4 -4 -4 -4 -3 -3 -3 -3 -2 -1 ------- Run | Scr Mat Min Exi Min Mat Gar Sto Fac Fac Ext Cet Arc Hub Gar Fac Fac Upp Upp Zhi Pro Res DSF Gar Res Acc Robot Analysis Total 5 | . . . . . . . . . . 1 . . . . . . . . 4 . . . . . . Derelict Logs Recovered 2 | . . 1 . . . . . . . . . . . . . . 1 . . . . . . . . Drone Launches . | . . . . . . . . . . . . . . . . . . . . . . . . . . Drone Recoveries . | . . . . . . . . . . . . . . . . . . . . . . . . . . Exploration | -11 -10 -10 -10 -9 -8 -8 -8 -7 -6 -6 -6 -6 -6 -6 -5 -4 -4 -4 -4 -3 -3 -3 -3 -2 -1 ------------- Run | Scr Mat Min Exi Min Mat Gar Sto Fac Fac Ext Cet Arc Hub Gar Fac Fac Upp Upp Zhi Pro Res DSF Gar Res Acc Turns Passed 19033 | 71 498 395 671 220 381 1314 1193 1505 1823 1766 558 102 322 751 1861 1340 819 505 285 476 143 77 273 400 1284 Spaces Moved 8808 | 48 223 176 280 72 133 528 368 760 838 767 254 56 163 339 832 610 500 306 166 296 89 42 131 213 618 Core 16 | 16 . . . . . . . . . . . . . . . . . . . . . . . . . Treads 8607 | 32 223 176 280 72 133 383 328 760 838 767 254 56 163 339 832 610 500 306 166 296 89 42 131 213 618 Legs 185 | . . . . . . 145 40 . . . . . . . . . . . . . . . . . . Wheels . | . . . . . . . . . . . . . . . . . . . . . . . . . . Hover . | . . . . . . . . . . . . . . . . . . . . . . . . . . Flight . | . . . . . . . . . . . . . . . . . . . . . . . . . . Fastest Speed 50 | 50 160 160 240 240 160 155 150 152 152 165 160 163 163 163 160 145 160 160 160 160 160 160 160 155 155 Average Speed 170 | 123 160 198 240 240 163 203 158 155 159 202 172 163 163 163 160 169 160 160 160 160 160 160 160 159 155 Slowest Speed 470 | 160 160 240 240 240 240 470 305 160 165 245 243 163 163 163 163 240 160 160 240 160 160 160 160 160 155 Overloaded Moves . | . . . . . . . . . . . . . . . . . . . . . . . . . . Propulsion Burnouts . | . . . . . . . . . . . . . . . . . . . . . . . . . . Robots Hopped . | . . . . . . . . . . . . . . . . . . . . . . . . . . Cave-ins Triggered . | . . . . . . . . . . . . . . . . . . . . . . . . . . Teleports 1 | . . . . . . . . . . . . . . . . . . . . . . . 1 . . Exploration Rate (%) 39 | 3 49 36 69 15 10 66 58 27 23 84 81 66 17 42 22 18 73 51 62 59 4 45 27 6 14 Regions Visited 25 Branch Regions 12 Pre-discovered Areas 4 | . . . 1 . . . . . . . . . . . . . . . 3 . . . . . . Known Exits Taken 9 | . 1 . . . 1 . 1 . 1 1 . . 1 . . 1 . . . . 1 . . 1 . Unknown Exits Taken 12 | 1 . 1 1 1 . . . 1 . . 1 1 . . 1 . 1 1 1 1 . . . . . Scrap Searched 5 | . . 1 . . . . . . . . . . . . . . 2 1 . 1 . . . . . Spaces Dug 78 | . . . . . . 15 3 3 13 . 1 . 9 23 8 . . . . . . . . 3 . Terrain Destroyed 391 | . . . . 15 1 21 3 41 21 8 13 . 14 43 114 24 13 24 . 11 . . 1 4 20 Melee 19 | . . . . . . . 3 3 13 . . . . . . . . . . . . . . . . Projectile 163 | . . . . . 1 . . . . 2 13 . 14 8 72 24 1 . . 3 . . 1 4 20 AOE 209 | . . . . 15 . 21 . 38 8 6 . . . 35 42 . 12 24 . 8 . . . . . Terrain Rammed . | . . . . . . . . . . . . . . . . . . . . . . . . . . Walls Destroyed . | . . . . . . . . . . . . . . . . . . . . . . . . . . Machines Disabled . | . . . . . . . . . . . . . . . . . . . . . . . . . . Actions | -11 -10 -10 -10 -9 -8 -8 -8 -7 -6 -6 -6 -6 -6 -6 -5 -4 -4 -4 -4 -3 -3 -3 -3 -2 -1 --------- Run | Scr Mat Min Exi Min Mat Gar Sto Fac Fac Ext Cet Arc Hub Gar Fac Fac Upp Upp Zhi Pro Res DSF Gar Res Acc Total 11979 | 59 301 201 280 103 250 688 896 1029 1255 951 349 67 191 498 1267 860 514 319 183 300 90 49 177 247 855 Wait 1986 | . 32 4 . 19 77 61 421 194 324 54 26 12 4 139 311 139 . 6 . . . 2 28 11 122 Move 8783 | 47 222 175 279 71 133 527 367 759 837 766 253 55 162 338 831 609 499 305 165 295 88 41 130 212 617 Hop . | . . . . . . . . . . . . . . . . . . . . . . . . . . Pick Up 115 | 8 7 7 1 1 7 8 8 6 6 5 7 . . . 14 15 . . 1 2 . . . 2 10 Fast Attach 111 | 2 . . . . 2 7 12 10 7 3 13 . 2 . 13 20 1 . 6 . . . 1 2 10 Attach 66 | 2 2 . . 1 5 4 3 4 3 3 5 . 1 . 4 11 . . 1 . 2 3 3 3 6 Detach 39 | . . . . . . 2 6 2 2 2 5 . . . 5 7 . . . . . 1 . 1 6 Swap 109 | . 1 2 . 2 3 5 9 9 21 12 4 . 1 2 5 9 7 2 3 . . . 5 . 7 Drop 152 | . 4 2 . . 1 7 20 9 12 16 20 . 2 . 24 17 1 1 6 3 . . 1 . 6 Fire 512 | . 33 11 . 9 22 44 47 33 30 27 16 . 19 19 59 33 6 5 1 . . 2 9 16 71 Melee 19 | . . . . . . . 3 3 13 . . . . . . . . . . . . . . . . Ram . | . . . . . . . . . . . . . . . . . . . . . . . . . . Kick . | . . . . . . . . . . . . . . . . . . . . . . . . . . Crush 1 | . . . . . . . . . . . . . . . 1 . . . . . . . . . . Escape Stasis 23 | . . . . . . 23 . . . . . . . . . . . . . . . . . . . Rewire 63 | . . . . . . . . . . 63 . . . . . . . . . . . . . . . Trap . | . . . . . . . . . . . . . . . . . . . . . . . . . . Miscellaneous . | . . . . . . . . . . . . . . . . . . . . . . . . . . Route ------- -11/Scrapyard -10/Materials (discovered 2 exits: *Min x2) -10/Mines (discovered 2 exits: [*Mat] / *Exi) -10/Exiles -9/Mines -8/Materials (discovered 2 exits: Fac / Gar) -8/Garrison (discovered 3 exits: *Sto x3) -8/Storage (discovered 2 exits: *Fac / Rec) -7/Factory -6/Factory (discovered 4 exits: Low x2 / *Ext x2) -6/Extension (discovered 3 exits: *Fac x2 / *Cet) -6/Cetus (discovered 2 exits: *Fac / *Arc) -6/Archives -6/Hub_04(d) -6/Garrison -5/Factory -4/Factory (discovered 3 exits: *Upp x2 / Arm) -4/Upper Caves -4/Upper Caves -4/Zhirov -3/Proximity Caves -3/Research -3/DSF -3/Garrison -2/Research (discovered 3 exits: *Acc x3) -1/Access To Epsilon Eridani History --------- Turn | Location | Event 10 | -11/Scrapyard | Discovered new exit (range 16) 72 | -11/Scrapyard | Entered Materials 315 | -10/Materials | Build established: Mutant 348 | -10/Materials | Discovered new exit (range 7) 464 | -10/Materials | Identified exit to Mines 570 | -10/Materials | Entered Mines 685 | -10/Mines | Deemed a non-threat by the Exiles lab entrance 685 | -10/Mines | Discovered new exit (range 5) 736 | -10/Mines | Discovered new exit (range 15) 772 | -10/Mines | Met a Derelict shopkeep closing up shop 773 | -10/Mines | Learned location of 1 exit from Materials 965 | -10/Mines | Entered Exiles 1030 | -10/Exiles | Met 8R-AWN 1064 | -10/Exiles | Met EX-HEX 1172 | -10/Exiles | Met EX-DEC 1232 | -10/Exiles | Learned location of Zion (-7) 1275 | -10/Exiles | Met EX-BIN 1309 | -10/Exiles | Aligned with FarCom system 1311 | -10/Exiles | Given EX-Vault access code 1371 | -10/Exiles | Opened EX-Vault 1388 | -10/Exiles | Found AWS/Autocannon 1442 | -10/Exiles | Warned to stay clear of 0b10 Research branches 1605 | -10/Exiles | Discovered new exit (range 14) 1636 | -10/Exiles | Left Exiles lab with AWS/Autocannon 1636 | -10/Exiles | Entered Mines 1826 | -9/Mines | Discovered new exit (range 10) 1838 | -9/Mines | Received a Rocket Launcher from a helpful Derelict 1856 | -9/Mines | Entered Materials 1856 | -8/Materials | Evolved 4 slots: Propulsion x1, Utility x3 1857 | -8/Materials | Identified exit to Factory 2237 | -8/Materials | Identified exit to Garrison 2237 | -8/Materials | Entered Garrison 2324 | -8/Garrison | Triggered checkpoint 2373 | -8/Garrison | Garrison Relay disabled 2596 | -8/Garrison | Triggered checkpoint 2596 | -8/Garrison | Triggered checkpoint 2681 | -8/Garrison | Spotted B-75 Beast 2681 | -8/Garrison | Spotted B-75 Beast 2866 | -8/Garrison | Discovered new exit (range 14) 2978 | -8/Garrison | Triggered checkpoint 3128 | -8/Garrison | Triggered checkpoint 3242 | -8/Garrison | Garrison Relay disabled 3317 | -8/Garrison | Discovered new exit (range 14) 3428 | -8/Garrison | Triggered checkpoint 3515 | -8/Garrison | Discovered new exit (range 8) 3543 | -8/Garrison | Installed Relay Interface Framework 3551 | -8/Garrison | Entered Storage 4026 | -8/Storage | Core integrity fell below 50% 4420 | -8/Storage | Identified exit to Recycling 4686 | -8/Storage | Build established: Scavenger-Mutant 4717 | -8/Storage | Discovered exit to Factory (range 14) 4744 | -8/Storage | Entered Factory 4744 | -7/Factory | Evolved 2 slots: Propulsion x1, Weapon x1 5059 | -7/Factory | Build established: Scavenger-Tank 5980 | -7/Factory | Repaired Adv. Treads 6053 | -7/Factory | Discovered new exit (range 15) 6249 | -7/Factory | Entered another Factory area 6249 | -6/Factory | Evolved 2 slots: Utility x2 6653 | -6/Factory | Build established: Scavenger-Skirmisher 7123 | -6/Factory | Identified exit to Lower Caves 7123 | -6/Factory | Identified exit to Extension 7195 | -6/Factory | Build established: Scavenger-Mutant 7321 | -6/Factory | Cargo convoy interrupted 7839 | -6/Factory | Found Prototype Processor 7839 | -6/Factory | Identified Exp. Targeting Computer 8056 | -6/Factory | Build established: Scavenger-Skirmisher 8072 | -6/Factory | Entered Extension 8292 | -6/Extension | Rescued A7 8348 | -6/Extension | Rescued a captive Derelict 8349 | -6/Extension | Rescued a captive Derelict 8527 | -6/Extension | Rescued a captive Derelict 8902 | -6/Extension | Build established: Commander-Gunner 9109 | -6/Extension | Destroyed B-75 Beast 9135 | -6/Extension | Spotted B-75 Beast 9148 | -6/Extension | Allies destroyed B-75 Beast 9251 | -6/Extension | Discovered new exit (range 3) 9350 | -6/Extension | Build established: Scavenger-Gunner 9735 | -6/Extension | Identified exit to Cetus 9789 | -6/Extension | Discovered new exit (range 10) 9838 | -6/Extension | Entered Cetus 9838 | -6/Cetus | Accompanied by 13 allies (A7) 9843 | -6/Cetus | Acquired a Cetus Manufacturing Module code from A7 9858 | -6/Cetus | Spotted Cetus Guard 9858 | -6/Cetus | Spotted Cetus Guard 9862 | -6/Cetus | Spotted Cetus Guard 9868 | -6/Cetus | Spotted Cetus Guard 9870 | -6/Cetus | Allies destroyed Cetus Guard 9873 | -6/Cetus | Allies destroyed Cetus Guard 9878 | -6/Cetus | Allies destroyed Cetus Guard 9878 | -6/Cetus | Allies destroyed Cetus Guard 9916 | -6/Cetus | System corruption reached 10% 9971 | -6/Cetus | Started Cetus Manufacturing Module 9996 | -6/Cetus | Manufactured an Enhanced Grunt 10021 | -6/Cetus | Manufactured an Enhanced Grunt 10023 | -6/Cetus | Cetus Manufacturing Module disabled 10094 | -6/Cetus | Escorted A7 to Cetus Mainframe 10145 | -6/Cetus | Discovered new exit (range 15) 10193 | -6/Cetus | Spotted Cetus Guard 10195 | -6/Cetus | Spotted Cetus Guard 10195 | -6/Cetus | Spotted Cetus Guard 10199 | -6/Cetus | Spotted Cetus Guard 10211 | -6/Cetus | Allies destroyed Cetus Guard 10212 | -6/Cetus | Discovered new exit (range 15) 10213 | -6/Cetus | Destroyed Cetus Guard 10215 | -6/Cetus | Extracted ID and sensor layout for unrecognized location from A7's data core 10217 | -6/Cetus | Destroyed Cetus Guard 10221 | -6/Cetus | Destroyed Cetus Guard 10230 | -6/Cetus | Met Revision 17 10396 | -6/Cetus | Entered Archives 10396 | -6/Archives | Accompanied by 2 allies 10429 | -6/Archives | Met Zhirov 10435 | -6/Archives | Reinforcements dispatched to Archives 10445 | -6/Archives | Discovered new exit (range 15) 10460 | -6/Archives | Read partially decrypted archive contents 10480 | -6/Archives | Reinforcements dispatched to Archives 10482 | -6/Archives | Zhirov warped through subspace 10498 | -6/Archives | Entered Hub_04(d) 10688 | -6/Hub_04(d) | Build established: Scavenger-Mutant 10774 | -6/Hub_04(d) | Identified exit to Garrison 10820 | -6/Hub_04(d) | Entered Garrison 10958 | -6/Garrison | Triggered checkpoint 11178 | -6/Garrison | Triggered checkpoint 11478 | -6/Garrison | Build established: Scavenger-Gunner 11519 | -6/Garrison | Discovered new exit (range 8) 11565 | -6/Garrison | Expanded RIF knowledge: Program Shield 11571 | -6/Garrison | Entered Factory 11571 | -5/Factory | Evolved 2 slots: Power x1, Utility x1 11836 | -5/Factory | Fabricated Imp. Heavy Treads (x2) 13154 | -5/Factory | Discovered new exit (range 16) 13371 | -5/Factory | First assault squad dispatched 13404 | -5/Factory | System corruption reached 10% 13432 | -5/Factory | Entered another Factory area 13432 | -4/Factory | Evolved 2 slots: Utility x1, Weapon x1 13462 | -4/Factory | Lost 5 parts (1p3u1w) 14016 | -4/Factory | System corruption reached 10% 14058 | -4/Factory | Lost 3 parts (3u) 14076 | -4/Factory | Found Faulty Exp. Targeting Computer 14144 | -4/Factory | Lost 6 parts (1p2n2u1w) 14182 | -4/Factory | First assault squad dispatched 14671 | -4/Factory | Found Unknown Protection 14671 | -4/Factory | Identified Hvy. Reflective Plating 14678 | -4/Factory | Found Hvy. Reflective Plating 14712 | -4/Factory | Build established: Mutant 14735 | -4/Factory | Identified exit to Upper Caves 14735 | -4/Factory | Identified exit to Armory 14772 | -4/Factory | Entered Upper Caves 15578 | -4/Upper Caves | Discovered new exit (range 9) 15591 | -4/Upper Caves | Entered another Upper Caves area 15692 | -4/Upper Caves | Spotted B-86 Titan 16076 | -4/Upper Caves | Discovered new exit (range 14) 16096 | -4/Upper Caves | Entered Zhirov 16096 | -4/Zhirov | Discovered new exit (range 3) 16157 | -4/Zhirov | Learned location of Quarantine (-2) 16157 | -4/Zhirov | Learned location of Testing (-3) 16157 | -4/Zhirov | Learned location of Command (-1) 16220 | -4/Zhirov | Found Alien Artifact 16220 | -4/Zhirov | Identified Integrated Reactor 16220 | -4/Zhirov | Installed Integrated Reactor, increased core energy generation (+10) 16316 | -4/Zhirov | Found Alien Artifact 16381 | -4/Zhirov | Entered Proximity Caves 16799 | -3/Proximity Caves | Attracted the attention of an 0b10 checkpoint 16847 | -3/Proximity Caves | Discovered new exit (range 7) 16857 | -3/Proximity Caves | Entered Research 16857 | -3/Research | Evolved 2 slots: Propulsion x2 16999 | -3/Research | Identified exit to DSF 17000 | -3/Research | Entered DSF 17026 | -3/DSF | Additional patrols routed to DSF 17050 | -3/DSF | Discovered new exit (range 15) 17077 | -3/DSF | Entered Garrison 17085 | -3/Garrison | Expanded RIF knowledge: Hotswap 17307 | -3/Garrison | Spotted B-86 Titan 17318 | -3/Garrison | Identified Transdimensional Reconstructor 17318 | -3/Garrison | Warped through subspace 17337 | -3/Garrison | Discovered new exit (range 8) 17348 | -3/Garrison | Lost 4 parts (1p1n2u) 17350 | -3/Garrison | Entered Research 17350 | -2/Research | Evolved 2 slots: Utility x2 17445 | -2/Research | Identified exit to Access 17750 | -2/Research | Entered Access 17750 | -1/Access | Evolved 2 slots: Utility x2 18744 | -1/Access | Build established: Scavenger-Gunner 18853 | -1/Access | Spotted B-99 Colossus 18893 | -1/Access | Destroyed B-99 Colossus 18901 | -1/Access | Spotted B-99 Colossus 18929 | -1/Access | Destroyed B-99 Colossus 18954 | -1/Access | Found Prototype Ballistic Gun 18954 | -1/Access | Identified Multirail 18958 | -1/Access | Found Multirail 18983 | -1/Access | Found Hvy. Reflective Plating 19029 | -1/Access | Discovered new exit (range 3) 19034 | *** | Escaped! Last Messages --------------- 18945_ Destroyed Hpw. Tractor Beam. 18945_ Destroyed Com. Wheel. 18945_ Slug penetrates R-10 Processor. 18945_ R-10 Processor suffers critical hit (Destroy). 18945_ Destroyed Imp. Ion Engine. 18954_ Acquired Prototype Ballistic Gun. 18954_ Identified Multirail. 18955_ Acquired 123 matter. 18963_ Acquired Arm. Heavy Treads. 18964_ Acquired 10 matter. 18967_ Acquired Adv. Coolant Injector. 18979_ Acquired 10 matter. 18983_ Acquired Hvy. Reflective Plating. 18984_ System corrupted: Enh. Nova Cannon failed to cycle. 18985_ Sealed Heavy Doors breached. 18995_ 2HVP6E%0H9ZX,RPC:7VKF6PZ0VR2 19018_ |HD/MW,1JKDVXX7R ORK=>HVJEB 19029_ Main Access Shell breached. 19029_ EXIT=FOUND [Achievement: Tester] Map ----- +----------------------------------------------------+ | ?????????????????????????????????????????????????? | | ?????????????????????????????????????????????????? | | ?????????????????????????????????????????????????? | | ?????????????????????????????????????????????????? | | ?????????????????????????????????????????????????? | | ?????????????????????????????????????????????????? | | ?????????????????????????????????????????????????? | | ?????????????????????????????????????????????????? | | ?????????????????????????????????????????????????? | | ?????????????????????????????????????????????????? | | ?????????????????????????????????????????????????? | | ?????????????????????????????????????????????????? | | ?????????????????????????????????????????????????? | | ?????????????????????????????????????????????????? | | ?????????????????????????????????????????????????? | | ?????????????????????????????????????????????????? | | ?????????????????????????????????????????????????? | | ?????????????????????????????????????????????????? | | ?????????????????????????????????????????????????? | | ?????????????????????????????????????????????????? | | ????????????????????""""""""""""?????????????????? | | ????????????????????# #?????????????????? | | ????????????????????# #?????????????????? | | ????????????????????# """""" #?????????????????? | | ????????????????????# " " #?????????????????? | | ????????????????????# @" " #?????????????????? | | ????????????????????# " "" " #?????????????????? | | ????????????????????# " " #?????????????????? | | ????????????????????# """""" #?????????????????? | | ???????????o????????# #?????????????????? | | ????????????????????#"""""""" "#?????????????????? | | ????????????????????????????" "??????????????????? | | ????????????????????????????" "??????????????????? | | ????????????????????#"""""""" "#?????????????????? | | ????????????????????# *] #?????????????????? | | ????????????????????# = % #?????????????????? | | ????????????????????# = #?????????????????? | | ????????????????????# % #?????????????????? | | ????????????????????# #?????????????????? | | ????????????????????# #?????????????????? | | ????????????????????# #?????????????????? | | ???????????############# #######??####????????? | | ??????????? ! # #? #???????? | | ?????????? # # ????????? | | ?????????? +% + " ?????????? | | ????????? # # """ ???????????? | | ?????????? # %#? """ ????????????? | | ????????????"""T"""" # % #?? " ?????????????? | | ????????????????""""" # % %#??? ?????????????? | | ????????????????######## #???? ?????????????? | +----------------------------------------------------+ Best States ------------- Heat Dissipation 90 Coolant Potential 100 Energy Generation 55 Energy Capacity 590 Matter Stores 300 Matter Capacity 300 Sight Range 16 Robot Scan Range 16 Terrain Scan Density 10 Jamming Range 16 Base Temperature (-) 200 Armor Coverage 1200 Resistance: KI 25 Resistance: TH 30 Resistance: EM 20 Power Shielding 66 Propulsion Shielding 33 Utility Shielding 66 Weapon Shielding 66 Weapon Cycling 30 Evasion (%) 40 Targeting Accuracy 17 Target Analysis 8 Core Analysis 6 Armor Integrity Analysis 30 Recoil Reduction 6 Matter Filtering 30 Particle Charging 30 Kinecelleration 40 Defensive Hacking 10 Relay Coupler Types 1 Relay Coupler Value 29 Authchip Count 1 Item Schematics ----------------- Imp. Heavy Treads | -5/Factory | Hacked Assault Drone Bay | -4/Zhirov | Free Exp. Heat Sink | -4/Zhirov | Free Exp. Optical Array | -4/Zhirov | Free Imp. Arc Thrower | -4/Zhirov | Free Robot Schematics ------------------ None Fabricated ------------ Imp. Heavy Treads | x2 | -5/Factory Alien Tech Used ----------------- Integrated Reactor Transdimensional Reconstructor Achievements -------------- Maybe Next Time I'll Detach My Launcher Project G-00 Revising The Future Tester Challenges ------------ None Game ------ Seed GravmagStructuralDoublenader Manual? 0 Play Time 03:10:31 Cumulative 79.5 hours Start 2021.11.08 @ 09:05:29 End 2021.11.08 @ 21:06:12 Sessions 9 Manual Loads 0 Difficulty Rogue Special Mode None Game No. 49 Rogue 46 Adventurer 3 Explorer 0 Win Type 0 Total 6 Types 5/1/0/0/0/0/0/0/0 Lore% 61 Gallery% 52 Achievement% 47 Wizard Run 0 Options --------- ASCII 1 Keyboard 1 Movement Vi Keybinds 0 Fullscreen 2 Font 18/SmallcapsGlow Map View 76x50 Tactical HUD 1 Map Filters NONE Filters NONE Steam 1 RUN: 626b7275-9af9-4cde-bd8f-d5cd81b0a63f